fUST/lending_fUST_20260115
["ID","MTS","AMOUNT","RATE_DAILY","PERIOD"]
[402019552,1768469443658,-244.45269121,0.00011174,2]
[402019553,1768469443668,-1652.54678741,0.00011176,2]
[402019568,1768469446458,-608.11491716,0.00011176,2]
[402019569,1768469446469,-745.82924241,0.00011176,2]
[402019597,1768469524854,500.0,0.00027397,120]
[402019598,1768469700826,2000.0,0.00027397,120]
[402019599,1768469708793,161.0,0.00025462,120]
[402019600,1768469710130,161.0,0.00026735,120]
[402019601,1768469737316,1504.00643578,0.00027397,120]
[402019602,1768469846231,500.0,0.00027397,120]
[402019619,1768470167886,500.0,0.00027397,120]
[402019620,1768470409003,500.0,0.00027397,120]
[402019621,1768470412095,1000.0,0.0001,3]
[402019622,1768470418134,500.0,0.00027397,120]
[402019623,1768470427901,1000.0,0.00027397,120]
[402019624,1768470439403,1000.0,0.00027397,120]
[402019625,1768470457789,1000.0,0.00027397,120]
[402019626,1768470482169,1000.0,0.00027397,120]
[402019627,1768470488527,500.0,0.00027397,120]
[402019628,1768470511175,500.0,0.0001,4]
[402019629,1768470537405,303.15931,0.00027397,120]
[402019630,1768470559285,500.0,0.00027397,120]
[402019631,1768470603903,500.0,0.0001,4]
[402019728,1768470638564,-2844.9653389,0.0001,4]
[402019729,1768470638618,-1655.0346611,0.0001,4]
[402019730,1768470638628,-177.00992103,0.00010143,2]
[402019731,1768470638637,-393.9261904,0.00010337,2]
[402019732,1768470638647,-171.446242,0.00010824,2]
[402019733,1768470638657,-435.45915777,0.00011176,2]
[402019734,1768470638668,-960.88302587,0.00011176,2]
[402019872,1768470640943,-339.83814567,0.00011176,2]
[402019927,1768470643949,-261.6435,0.00011176,2]
[402019929,1768470643960,-626.16112549,0.00011176,2]
[402019949,1768470646746,-1340.93426019,0.00011176,2]
[402019950,1768470646757,-87.87312876,0.00011176,2]
[402019951,1768470646768,-212.12687124,0.00011176,2]
[402019952,1768470646778,-300.0,0.00011176,2]
[402019953,1768470646788,-300.0,0.00011176,2]
[402019954,1768470646797,-300.0,0.00011176,2]
[402019956,1768470646806,-300.0,0.00011176,2]
[402019957,1768470646815,-300.0,0.00011176,2]
[402019958,1768470646824,-300.0,0.00011176,2]
[402019959,1768470646833,-300.0,0.00011176,2]
[402019960,1768470646842,-300.0,0.00011176,2]
[402019961,1768470646851,-300.0,0.00011176,2]
[402019962,1768470646861,-300.0,0.00011176,2]
[402019963,1768470646870,-300.0,0.00011176,2]
[402019964,1768470646879,-300.0,0.00011176,2]
[402019965,1768470646888,-300.0,0.00011176,2]
[402019966,1768470646898,-300.0,0.00011176,2]
[402019967,1768470646906,-348.0,0.00011176,2]
[402019968,1768470646915,-166.0,0.00011176,2]
[402019969,1768470646924,-348.0,0.00011176,2]
[402019970,1768470646933,-166.0,0.00011176,2]
[402019971,1768470646943,-172.0,0.00011176,2]
[402019972,1768470646952,-348.0,0.00011176,2]
[402019973,1768470646961,-348.0,0.00011176,2]
[402019974,1768470646970,-166.0,0.00011176,2]
[402019975,1768470646980,-348.0,0.00011176,2]
[402019976,1768470646989,-337.0,0.00011176,2]
[402019977,1768470647000,-166.0,0.00011176,2]
[402019978,1768470647010,-337.0,0.00011176,2]
[402019979,1768470647019,-348.0,0.00011176,2]
[402019980,1768470647029,-166.0,0.00011176,2]
[402019981,1768470647038,-151.0,0.00011176,2]
[402019982,1768470647047,-337.0,0.00011176,2]
[402019983,1768470647056,-348.0,0.00011176,2]
[402019984,1768470647065,-132.99381889,0.00011176,2]
[402019985,1768470681716,155.0,6e-05,2]
[402019987,1768470804469,500.0,0.00027397,120]
[402019988,1768470841764,-5000.0,0.00011064,5]
[402019989,1768470975346,300.0,0.00027397,120]
[402019990,1768471024601,270.03951894,0.00027397,120]
[402019991,1768471120853,500.0,0.00027397,120]
[402019993,1768471257085,1792.88392776,0.00027397,120]
[402019994,1768471436595,500.0,0.00027397,120]
[402019997,1768471711305,5000.0,8e-05,2]
[402019998,1768471745680,927.02460122,0.00027397,120]
[402020015,1768471831655,-5000.0,0.00010522,5]
[402020016,1768471831665,-178.05790538,0.00010835,2]
[402020017,1768471831674,-1200.0,0.00010934,2]
[402020018,1768471831683,-4643.8989082,0.00010935,2]
[402020019,1768471831692,-500.0,0.00011125,2]
[402020020,1768471831701,-164.90520993,0.00011125,2]
[402020021,1768471831710,-151.3135251,0.00011125,2]
[402020022,1768471831719,-500.0,0.00011125,2]
[402020023,1768471831728,-500.0,0.00011125,2]
[402020024,1768471831737,-1340.93426019,0.00011176,2]
[402020025,1768471831746,-348.0,0.00011176,2]
[402020026,1768471831755,-348.0,0.00011176,2]
[402020027,1768471831764,-348.0,0.00011176,2]
[402020028,1768471831773,-151.0,0.00011176,2]
[402020029,1768471831782,-337.0,0.00011176,2]
[402020030,1768471831791,-334.44262798,0.00011176,2]
[402020031,1768471831801,-151.0,0.00011176,2]
[402020032,1768471831810,-337.0,0.00011176,2]
[402020033,1768471831820,-151.0,0.00011176,2]
[402020034,1768471831829,-337.0,0.00011176,2]
[402020035,1768471831838,-151.0,0.00011176,2]
[402020036,1768471831847,-337.0,0.00011176,2]
[402020037,1768471831856,-151.0,0.00011176,2]
[402020038,1768471831865,-337.0,0.00011176,2]
[402020039,1768471831874,-151.0,0.00011176,2]
[402020040,1768471831883,-379.66671853,0.00011176,2]
[402020041,1768471831892,-151.0,0.00011176,2]
[402020042,1768471831901,-302.0,0.00011176,2]
[402020043,1768471831911,-155.18198644,0.00011176,2]
[402020044,1768471831920,-172.0,0.00011176,2]
[402020045,1768471831929,-151.0,0.00011176,2]
[402020046,1768471831939,-618.69740254,0.00011262,2]
[402020047,1768471831948,-500.0,0.00011262,2]
[402020048,1768471831958,-500.0,0.00011262,2]
[402020049,1768471831968,-2833.6643835,0.00011351,2]
[402020050,1768471831977,-500.0,0.00011399,2]
[402020051,1768471831987,-346.0,0.00011399,2]
[402020052,1768471831997,-600.0,0.00011399,2]
[402020053,1768471832006,-300.0,0.00011399,2]
[402020054,1768471832016,-300.0,0.00011399,2]
[402020055,1768471832025,-300.0,0.00011399,2]
[402020056,1768471832036,-300.0,0.00011399,2]
[402020057,1768471832046,-300.0,0.00011399,2]
[402020058,1768471832055,-300.0,0.00011399,2]
[402020059,1768471832064,-300.0,0.00011399,2]
[402020060,1768471832073,-300.0,0.00011399,2]
[402020061,1768471832082,-300.0,0.00011399,2]
[402020062,1768471832091,-300.0,0.00011399,2]
[402020063,1768471832101,-300.0,0.00011399,2]
[402020064,1768471832111,-300.0,0.00011399,2]
[402020065,1768471832120,-300.0,0.00011399,2]
[402020066,1768471832129,-300.0,0.00011399,2]
[402020067,1768471832138,-300.0,0.00011399,2]
[402020068,1768471832148,-1929.9329829,0.00011543,2]
[402020069,1768471832158,-150.48803404,0.00011673,2]
[402020070,1768471832167,-150.44485842,0.00011673,2]
[402020071,1768471832176,-150.55313475,0.0001181,2]
[402020072,1768471832185,-200.0,0.0001181,2]
[402020073,1768471832194,-121.92828355,0.0001181,2]
[402020074,1768471832206,-128.07171645,0.0001181,2]
[402020075,1768471832216,-250.0,0.00011831,2]
[402020076,1768471832225,-445.202766,0.00011831,2]
[402020077,1768471832234,-250.0,0.00011831,2]
[402020078,1768471832244,-250.0,0.00011831,2]
[402020079,1768471832253,-250.0,0.00011831,2]
[402020080,1768471832262,-250.0,0.00011831,2]
[402020081,1768471832272,-162.380719,0.00011831,2]
[402020082,1768471832281,-168.3888056,0.00011831,2]
[402020083,1768471832449,-174.61919141,0.00011831,2]
[402020084,1768471832496,-181.08010149,0.00011831,2]
[402020085,1768471832506,-187.78006525,0.00011831,2]
[402020086,1768471832515,-194.72792766,0.00011831,2]
[402020087,1768471832527,-201.93286099,0.00011831,2]
[402020088,1768471832537,-209.40437684,0.00011831,2]
[402020089,1768471832547,-217.15233878,0.00011831,2]
[402020090,1768471832555,-147.92628857,0.00011831,2]
[402020148,1768471843946,-77.26068675,0.00011831,2]
[402020149,1768471843956,-195.34811228,0.00011831,2]
[402020158,1768471845881,-38.17078113,0.00011831,2]
[402020160,1768471845890,-242.15909246,0.00011831,2]
[402020162,1768471845900,-251.11897888,0.00011831,2]
[402020164,1768471845909,-260.4103811,0.00011831,2]
[402020166,1768471845918,-270.0455652,0.00011831,2]
[402020168,1768471845927,-280.03725112,0.00011831,2]
[402020169,1768471845937,-290.39862941,0.00011831,2]
[402020170,1768471845947,-301.1433787,0.00011831,2]
[402020171,1768471845956,-174.49674728,0.00011916,2]
[402020172,1768471845965,-394.58916604,0.00012,2]
[402020173,1768471845976,-461.67526834,0.00012379,2]
[402020174,1768471845986,-4643.8989082,0.00012442,2]
[402020175,1768471845995,-720.0,0.00012538,2]
[402020176,1768471846004,-478.75725327,0.00012927,2]
[402020177,1768471846014,-614.94,0.00013,3]
[402020178,1768471846024,-155.0,0.00013126,2]
[402020179,1768471846034,-496.47127164,0.00013475,2]
[402020180,1768471846044,-240.18819146,0.00013698,2]
[402020181,1768471846054,-1394.13,0.00013698,2]
[402020182,1768471846065,-1394.13,0.00013698,2]
[402020183,1768471846076,-1394.13,0.00013698,2]
[402020184,1768471846086,-1394.13,0.00013698,2]
[402020185,1768471846096,-560.05724626,0.00013698,2]
[402020186,1768471846106,-1517.0,0.00013699,2]
[402020187,1768471846116,-1000.0,0.00013699,2]
[402020188,1768471846125,-179.494697,0.00013699,2]
[402020189,1768471846135,-179.494697,0.00013699,2]
[402020190,1768471846145,-179.494697,0.00013699,2]
[402020191,1768471846154,-179.494697,0.00013699,2]
[402020192,1768471846164,-179.494697,0.00013699,2]
[402020193,1768471846173,-179.494697,0.00013699,2]
[402020194,1768471846182,-179.494697,0.00013699,2]
[402020195,1768471846191,-179.494697,0.00013699,2]
[402020196,1768471846201,-179.494697,0.00013699,2]
[402020197,1768471846211,-179.494697,0.00013699,2]
[402020198,1768471846220,-179.494697,0.00013699,2]
[402020199,1768471846229,-179.494697,0.00013699,2]
[402020200,1768471846239,-179.494697,0.00013699,2]
[402020201,1768471846248,-179.494697,0.00013699,2]
[402020202,1768471846257,-179.494697,0.00013699,2]
[402020203,1768471846267,-179.494697,0.00013699,2]
[402020204,1768471846276,-179.494697,0.00013699,2]
[402020205,1768471846285,-179.494697,0.00013699,2]
[402020206,1768471846294,-179.494697,0.00013699,2]
[402020207,1768471846305,-179.494695,0.00013699,2]
[402020208,1768471846315,-400.0,0.00013699,2]
[402020209,1768471846324,-343.30360209,0.00013775,2]
[402020210,1768471994978,790.0,8.2e-07,120]
[402020211,1768472055958,500.0,0.00027397,120]
[402020214,1768472368229,500.0,0.00027397,120]
[402020215,1768472550190,158.0,0.0002515,120]
[402020216,1768472551541,158.0,0.00026408,120]
[402020217,1768472685164,500.0,0.00027397,120]
[402020224,1768472765243,1044.17,0.00027397,120]
[402020234,1768472998211,500.0,0.00027397,120]
[402020281,1768473037930,-1161.54601327,0.00011155,5]
[402020282,1768473037943,-968.75395028,0.00011155,5]
[402020284,1768473037983,-980.33551009,0.00011155,5]
[402020370,1768473040349,-1889.36452636,0.00011155,5]
[402020372,1768473040358,-313.00606288,0.00011468,2]
[402020374,1768473040367,-171.00681233,0.00011468,2]
[402020376,1768473040377,-207.65796461,0.00011613,2]
[402020378,1768473040385,-2432.08488032,0.0001295,2]
[402020380,1768473040395,-3480.72837968,0.00013124,2]
[402020384,1768473040414,-2.19580142,0.00013124,2]
[402020385,1768473040423,-201.78803855,0.00013468,2]
[402020387,1768473040432,-154.38013935,0.000135,2]
[402020506,1768473045948,-1428.80821665,0.00013365,5]
[402020518,1768473173813,233.26,9.3e-05,2]
[402020519,1768473252113,227.32,6.29e-05,2]
[402020520,1768473252493,340.98,6.576e-05,2]
[402020521,1768473252878,454.64,6.862e-05,2]
[402020522,1768473253526,568.3,7.147e-05,2]
[402020523,1768473254078,681.96,7.433e-05,2]
[402020524,1768473254834,795.62,7.719e-05,2]
[402020525,1768473255241,909.28,8.005e-05,2]
[402020526,1768473255635,788.65,8.291e-05,2]
[402020527,1768473255658,234.28,8.291e-05,2]
[402020528,1768473256423,1136.59,8.577e-05,2]
[402020529,1768473272732,4599.18076353,9.45e-05,2]
[402020530,1768473308200,500.0,0.00027397,120]
[402020531,1768473330611,177.72,7.259e-05,2]
[402020533,1768473330895,213.27,7.549e-05,2]
[402020534,1768473331301,248.81,7.84e-05,2]
[402020535,1768473331682,284.35,8.13e-05,2]
[402020536,1768473332083,319.9,8.42e-05,2]
[402020537,1768473332477,355.44,8.711e-05,2]
[402020538,1768473368008,1851.25586237,0.00027397,120]
[402020540,1768473429371,1000.0,0.0001,5]
[402020541,1768473480100,162.33,5.974e-05,2]
[402020542,1768473480358,162.32,5.974e-05,2]
[402020543,1768473618410,500.0,0.00027397,120]
[402020556,1768473702121,260.5731241,6.08e-05,2]
[402020557,1768473740444,1752.0,0.0002739,120]
[402020558,1768473927635,500.0,0.00027397,120]
[402020563,1768473965009,290.0,7e-05,2]
[402020567,1768474069687,1000.0,0.00027,120]
[402020568,1768474125084,917.0,0.00027,120]
[402020569,1768474133048,800.0,0.0002739,120]
[402020570,1768474134473,800.0,0.0002739,120]
[402020571,1768474135532,800.0,0.0002739,120]
[402020572,1768474224193,1572.7958,0.00027397,120]
[402020573,1768474226361,500.0,0.00027,120]
[402020649,1768474235582,500.0,0.00027397,120]
[402020704,1768474240733,-5000.0,0.00010846,6]
[402020705,1768474240742,-173.15706513,0.00011096,2]
[402020706,1768474240751,-664.3943439,0.00012584,2]
[402020707,1768474240760,-348.0,0.00012971,2]
[402020709,1768474240769,-337.0,0.00012971,2]
[402020711,1768474240778,-337.0,0.00012971,2]
[402020713,1768474240787,-348.0,0.00012971,2]
[402020715,1768474240797,-337.0,0.00012971,2]
[402020717,1768474240806,-348.0,0.00012971,2]
[402020719,1768474240815,-348.0,0.00012971,2]
[402020721,1768474240823,-348.0,0.00012971,2]
[402020723,1768474240832,-348.0,0.00012971,2]
[402020725,1768474240841,-348.0,0.00012971,2]
[402020727,1768474240850,-204.32533685,0.00013096,2]
[402020729,1768474240860,-939.0,0.00013225,2]
[402020731,1768474240870,-2833.6643836,0.00013234,2]
[402020733,1768474240879,-300.0,0.00013261,2]
[402020735,1768474240888,-200.0,0.000133,2]
[402020737,1768474240897,-3241.06676273,0.0001331,2]
[402020739,1768474240906,-322.7291542,0.0001331,2]
[402020741,1768474240915,-304.737,0.00013328,2]
[402020743,1768474240924,-151.0,0.00013328,2]
[402020745,1768474240933,-151.0,0.00013328,2]
[402020747,1768474240942,-544.3326671,0.000134,2]
[402020749,1768474240951,-445.202766,0.00013402,2]
[402020750,1768474240961,-162.380719,0.00013402,2]
[402020753,1768474240970,-168.3888056,0.00013402,2]
[402020755,1768474240979,-174.61919141,0.00013402,2]
[402020756,1768474240988,-181.08010149,0.00013402,2]
[402020758,1768474240997,-187.78006525,0.00013402,2]
[402020760,1768474241007,-194.72792766,0.00013402,2]
[402020762,1768474241016,-201.93286099,0.00013402,2]
[402020764,1768474241025,-209.40437684,0.00013402,2]
[402020766,1768474241034,-217.15233878,0.00013402,2]
[402020768,1768474241043,-225.18697532,0.00013402,2]
[402020770,1768474241052,-233.51889341,0.00013402,2]
[402020772,1768474241061,-242.15909246,0.00013402,2]
[402020774,1768474241070,-251.11897888,0.00013402,2]
[402020776,1768474241079,-260.4103811,0.00013402,2]
[402020778,1768474241089,-270.0455652,0.00013402,2]
[402020780,1768474241098,-280.03725112,0.00013402,2]
[402020782,1768474241107,-290.39862941,0.00013402,2]
[402020784,1768474241116,-301.1433787,0.00013402,2]
[402020786,1768474241125,-151.0,0.00013402,2]
[402020788,1768474241134,-151.0,0.00013402,2]
[402020790,1768474241143,-235.20106675,0.0001341,2]
[402020805,1768474241281,-1198.53225066,0.0001341,2]
[402021014,1768475283604,227.26,5.974e-05,2]
[402021017,1768475432368,-506.72540412,0.00011157,2]
[402021018,1768475432380,-1123.02642622,0.00011157,2]
[402021019,1768475432422,-3370.24816966,0.00011157,2]
[402021020,1768475432431,-577.0,0.00011157,2]
[402021021,1768475432442,-28601.86075367,0.00011379,2]
[402021022,1768475432452,-300.0,0.00011379,2]
[402021023,1768475432462,-300.0,0.00011379,2]
[402021024,1768475432472,-300.0,0.00011379,2]
[402021025,1768475432482,-300.0,0.00011379,2]
[402021026,1768475432492,-300.0,0.00011379,2]
[402021027,1768475432502,-300.0,0.00011379,2]
[402021028,1768475432512,-300.0,0.00011379,2]
[402021029,1768475432522,-300.0,0.00011379,2]
[402021030,1768475432532,-300.0,0.00011379,2]
[402021031,1768475432541,-300.0,0.00011379,2]
[402021032,1768475432551,-300.0,0.00011379,2]
[402021033,1768475432560,-300.0,0.00011379,2]
[402021034,1768475432570,-300.0,0.00011379,2]
[402021035,1768475432581,-300.0,0.00011379,2]
[402021036,1768475432597,-300.0,0.00011379,2]
[402021037,1768475432612,-169.99335648,0.00011385,2]
[402021038,1768475432622,-600.0,0.00011606,2]
[402021039,1768475432638,-184.8533037,0.00012127,2]
[402021040,1768475432648,-720.0,0.00012766,2]
[402021041,1768475432658,-2612.1931358,0.00012784,2]
[402021042,1768475432669,-300.0,0.00013119,2]
[402021043,1768475432682,-51011.01245051,0.0001312,2]
[402021044,1768475432712,-9854.02710172,0.0001312,2]
[402021077,1768475438511,-1132.07714844,0.0001312,2]
[402021078,1768475438523,-4905.58364292,0.0001312,2]
[402021079,1768475438536,-3335.66178699,0.0001312,2]
[402021080,1768475438556,-3610.35764539,0.0001312,2]
[402021123,1768475440446,-454.35316042,0.0001312,2]
[402021300,1768475443432,-915.53682693,0.00012989,2]
[402021301,1768475443443,-2086.3943386,0.00012989,2]
[402021351,1768475446459,-1466.7893271,0.00012989,2]
[402021353,1768475446470,-531.27950737,0.00012989,2]
[402021355,1768475446479,-470.8950296,0.0001312,2]
[402021990,1768475517529,1042.50786222,0.00027397,120]
[402021991,1768475518661,155.0,5.98e-05,2]
[402021992,1768475602842,-243.79,0.00012858,2]
[402021993,1768475602861,-243.79,0.00012989,2]
[402021994,1768475602872,-1006.16121921,0.00012989,2]
[402022001,1768476464688,1928.0,0.00027397,120]
[402022002,1768476475622,1760.12025773,0.00027,120]
[402022003,1768476562630,256.98114394,0.0002377,120]
[402022004,1768476610888,1000.0,0.0001,6]
[402022005,1768476619030,1000.0,0.0001,7]
[402022046,1768476632340,-3293.21134449,0.0001,2]
[402022048,1768476632350,-532.21930964,0.0001,2]
[402022050,1768476632359,-560.0,0.0001,2]
[402022052,1768476632368,-4000.0,0.0001,6]
[402022054,1768476632377,-350.14105922,0.0001,7]
[402022056,1768476632386,-1200.0,0.00011176,2]
[402022058,1768476632395,-300.0,0.00011176,2]
[402022060,1768476632404,-561.09296395,0.00011177,2]
[402022062,1768476632413,-171.37807319,0.00011462,2]
[402022064,1768476632422,-7972.6396445,0.00012113,2]
[402022066,1768476632431,-500.0,0.0001244,2]
[402022068,1768476632441,-500.0,0.0001244,2]
[402022070,1768476632450,-500.0,0.0001244,2]
[402022072,1768476632460,-500.0,0.0001244,2]
[402022074,1768476632469,-500.0,0.0001244,2]
[402022075,1768476632478,-500.0,0.0001244,2]
[402022076,1768476632488,-500.0,0.0001244,2]
[402022077,1768476632498,-500.0,0.0001244,2]
[402022078,1768476632507,-500.0,0.0001244,2]
[402022079,1768476632516,-500.0,0.0001244,2]
[402022081,1768476632525,-500.0,0.0001244,2]
[402022083,1768476632534,-500.0,0.0001244,2]
[402022084,1768476632543,-247.55782027,0.0001244,2]
[402022085,1768476632553,-500.0,0.0001244,2]
[402022086,1768476632562,-500.0,0.0001244,2]
[402022087,1768476632572,-500.0,0.0001244,2]
[402022088,1768476632582,-377.6837282,0.00012441,2]
[402022089,1768476632591,-755.1645066,0.00012541,2]
[402022090,1768476632600,-1959.1448519,0.00012563,2]
[402022091,1768476632609,-377.6837282,0.000126,2]
[402022092,1768476632618,-377.6837282,0.000126,2]
[402022093,1768476632627,-377.6837282,0.000126,2]
[402022094,1768476632636,-377.6837282,0.000126,2]
[402022095,1768476632645,-384.3919213,0.000126,2]
[402022096,1768476632654,-153.0,0.00012638,2]
[402022097,1768476632663,-602.1679056,0.00012638,2]
[402022098,1768476632671,-602.1679056,0.00012638,2]
[402022099,1768476632680,-153.0,0.00012638,2]
[402022100,1768476632689,-3027.65074768,0.00012669,2]
[402022101,1768476632698,-153.0,0.00012678,2]
[402022102,1768476632707,-602.1679056,0.00012678,2]
[402022103,1768476632715,-5888.0,0.00012708,2]
[402022104,1768476632725,-151.0,0.00013,2]
[402022105,1768476632733,-258.18332336,0.00013,2]
[402022106,1768476632742,-155.0,0.00013008,2]
[402022107,1768476632751,-359.58186029,0.00013008,2]
[402022108,1768476632760,-151.0,0.00013009,2]
[402022109,1768476632769,-116092.14860441,0.00013009,2]
[402022110,1768476632788,-412.71247724,0.00013009,2]
[402022111,1768476632799,-614.88916964,0.00013009,2]
[402022125,1768476638456,-572.71456598,0.0001244,2]
[402022126,1768476638466,-164.77557755,0.0001287,8]
[402022127,1768476638477,-2694.03393832,0.0001287,8]
[402022128,1768476638488,-2141.19048413,0.0001287,8]
[402022129,1768476638497,-1515.88609225,0.00013009,2]
[402022130,1768476638509,-4840.4598424,0.00013009,2]
[402022178,1768476643586,-546.36861514,0.00013009,2]
[402022182,1768476646500,-1428.80906722,0.00013009,2]
[402022184,1768476741361,500.0,0.00027397,120]
[402022185,1768476741601,500.0,0.00027397,120]
[402022186,1768476741827,500.0,0.00027397,120]
[402022187,1768476742069,500.0,0.00027397,120]
[402022188,1768476742496,500.0,0.00027397,120]
[402022189,1768476742750,500.0,0.00027397,120]
[402022190,1768476743051,500.0,0.00027397,120]
[402022191,1768476743397,500.0,0.00027397,120]
[402022192,1768476743491,192.08264571,0.00027397,120]
[402022220,1768477083016,159.08,4.995e-05,2]
[402022221,1768477126157,764.56,0.00027397,120]
[402022223,1768477303850,-56.21,0.00012371,8]
[402022225,1768477345659,151.0,0.00027397,120]
[402022226,1768477357649,151.0,0.00027397,120]
[402022314,1768477840832,-1211.99824618,0.00012264,8]
[402022366,1768477844764,-383.72924865,0.00012264,8]
[402022380,1768477919196,1971.5552035,0.00027397,120]
[402022385,1768477999883,-1929.5960544,0.00012264,8]
[402022386,1768478242946,180.72875241,0.00024138,120]
[402022391,1768478354817,303.41123715,0.00027397,120]
[402022392,1768478379365,303.41123715,0.00027397,120]
[402022393,1768478398277,303.41123715,0.00027397,120]
[402022394,1768478411858,303.41123715,0.00027397,120]
[402022395,1768478428624,303.41123715,0.00027397,120]
[402022396,1768478441036,303.41123715,0.00027397,120]
[402022397,1768478453862,303.41123715,0.00027397,120]
[402022398,1768478482785,191.49711477,0.00024169,120]
[402022399,1768478482846,154.99592476,0.00024169,120]
[402022406,1768478659037,158.0,0.000273,120]
[402022407,1768478660224,158.0,0.000273,120]
[402022408,1768478661333,158.0,0.000273,120]
[402022409,1768478665742,158.0,0.000273,120]
[402022410,1768478666179,158.0,0.000273,120]
[402022411,1768478666669,158.0,0.000273,120]
[402022412,1768478670508,158.0,0.000273,120]
[402022413,1768478671079,158.0,0.000273,120]
[402022414,1768478675301,158.0,0.000273,120]
[402022415,1768478675876,158.0,0.000273,120]
[402022418,1768478810617,158.0,0.000273,120]
[402022419,1768478811446,158.0,0.000273,120]
[402022420,1768478812472,158.0,0.000273,120]
[402022432,1768479031594,-171.24405273,0.00010988,2]
[402022434,1768479031604,-988.75692034,0.00011214,8]
[402022438,1768479031635,-717.47312488,0.00011214,8]
[402022440,1768479031646,-1211.42354415,0.00011214,8]
[402022456,1768479037839,-311.65185859,0.00011214,8]
[402022457,1768479037852,-1770.69455204,0.00011214,8]
[402022458,1768479037863,-171.24405273,0.00011328,2]
[402022459,1768479037874,-172.95822048,0.00011444,2]
[402022460,1768479037883,-163.0,0.000122,2]
[402022461,1768479037894,-158.0,0.000123,2]
[402022462,1768479037904,-230.808,0.00012553,2]
[402022463,1768479037914,-244.0,0.00012599,2]
[402022464,1768479037923,-300.0,0.00012599,2]
[402022465,1768479037934,-377.6837282,0.000126,2]
[402022466,1768479037944,-377.6837282,0.000126,2]
[402022467,1768479037954,-602.1679056,0.000126,2]
[402022468,1768479037963,-377.6837282,0.000126,2]
[402022469,1768479037972,-602.1679056,0.000126,2]
[402022470,1768479037981,-123.9903068,0.000126,2]
[402022471,1768479037994,-29.0096932,0.000126,2]
[402022472,1768479038003,-602.1679056,0.000126,2]
[402022473,1768479038013,-153.0,0.000126,2]
[402022474,1768479038022,-153.0,0.000126,2]
[402022475,1768479038031,-1217.7810432,0.000126,2]
[402022476,1768479038040,-153.0,0.000126,2]
[402022477,1768479038050,-153.0,0.000128,2]
[402022478,1768479038059,-377.6837282,0.000128,2]
[402022479,1768479038069,-206.54665868,0.000128,2]
[402022480,1768479038078,-445.202766,0.00012801,2]
[402022481,1768479038088,-162.380719,0.00012801,2]
[402022482,1768479038097,-168.3888056,0.00012801,2]
[402022483,1768479038107,-174.61919141,0.00012801,2]
[402022484,1768479038116,-181.08010149,0.00012801,2]
[402022485,1768479038126,-187.78006525,0.00012801,2]
[402022486,1768479038135,-194.72792766,0.00012801,2]
[402022487,1768479038145,-201.93286099,0.00012801,2]
[402022488,1768479038155,-209.40437684,0.00012801,2]
[402022489,1768479038164,-217.15233878,0.00012801,2]
[402022490,1768479038174,-225.18697532,0.00012801,2]
[402022491,1768479038183,-233.51889341,0.00012801,2]
[402022492,1768479038193,-242.15909246,0.00012801,2]
[402022493,1768479038203,-251.11897888,0.00012801,2]
[402022494,1768479038212,-260.4103811,0.00012801,2]
[402022495,1768479038222,-270.0455652,0.00012801,2]
[402022496,1768479038232,-142.7874983,0.00012801,2]